[Event "44th Chess Olympiad Open 2022"]
[Site "Chennai"]
[Date "2022.08.02"]
[Round "5.68"]
[White "Uapingene, Uatiavi Jossy"]
[Black "Drayton, Anthony"]
[Result "1/2-1/2"]
[WhiteElo "1798"]
[BlackElo "1928"]
[Annotator "NA RC"]
[PlyCount "211"]
[EventDate "2022.??.??"]
[TimeControl "60"]

1. d4 {[%emt 0:00:15]} Nf6 {[%emt 0:00:09]} 2. Bg5 {[%emt 0:00:04]} d5 {
[%emt 0:00:05]} 3. Bxf6 {[%emt 0:00:07]} exf6 {[%emt 0:00:07]} 4. e3 {[%emt 0:
00:00]} Bd6 {[%emt 0:00:09]} 5. g3 {[%emt 0:00:21]} Nd7 {[%emt 0:00:25]} 6. Bg2
{[%emt 0:02:46]} c6 {[%emt 0:00:20]} 7. Ne2 {[%emt 0:02:05]} Nb6 {[%emt 0:00:
00]} 8. b3 {[%emt 0:06:16]} Bf5 {[%emt 0:00:15]} 9. Nd2 {[%emt 0:00:11]} Ba3 {
[%emt 0:00:21]} 10. O-O {[%emt 0:02:00]} O-O {[%emt 0:03:19]} 11. Nf3 {[%emt 0:
00:00]} h6 {[%emt 0:02:58]} 12. Qd2 {[%emt 0:00:22]} Re8 {[%emt 0:00:41]} 13.
Nf4 {[%emt 0:09:12]} Qe7 {[%emt 0:04:06]} 14. Nd3 {[%emt 0:05:15]} Rad8 {
[%emt 0:01:42]} 15. Rab1 {[%emt 0:00:27]} Bg6 {[%emt 0:01:26]} 16. Qc3 {
[%emt 0:06:13]} a5 {[%emt 0:07:35]} 17. Nh4 {[%emt 0:02:42]} Bh7 {[%emt 0:00:
00]} 18. b4 {[%emt 0:13:26]} Bxd3 {[%emt 0:04:10]} 19. cxd3 {[%emt 0:00:07]}
Bxb4 {[%emt 0:00:42]} 20. Qb3 {[%emt 0:00:06]} Na8 {[%emt 0:04:51]} 21. Nf5 {
[%emt 0:02:44]} Qf8 {[%emt 0:00:42]} 22. a3 {[%emt 0:02:13]} Bxa3 {[%emt 0:00:
00]} 23. Qxb7 {[%emt 0:00:07]} g6 {[%emt 0:01:44]} 24. Nh4 {[%emt 0:00:44]} Qd6
{[%emt 0:01:48]} 25. Qb3 {[%emt 0:00:43]} Rb8 {[%emt 0:00:37]} 26. Qa4 {
[%emt 0:00:22]} Rxb1 {[%emt 0:00:24]} 27. Rxb1 {[%emt 0:00:12]} Bb4 {[%emt 0:
00:00]} 28. Rc1 {[%emt 0:00:22]} Rc8 {[%emt 0:00:32]} 29. Qd1 {[%emt 0:00:23]}
Nb6 {[%emt 0:01:32]} 30. Nf3 {[%emt 0:07:38]} c5 {[%emt 0:01:41]} 31. dxc5 {
[%emt 0:07:23]} Rxc5 {[%emt 0:00:12]} 32. Nd4 {[%emt 0:00:22]} Rxc1 {[%emt 0:
00:00]} 33. Qxc1 {[%emt 0:02:54]} Qc5 {[%emt 0:00:25]} 34. Qxc5 {[%emt 0:07:03]
} Bxc5 {[%emt 0:04:25]} 35. Nb3 {[%emt 0:00:04]} Bb4 {[%emt 0:00:10]} 36. Na1 {
[%emt 0:00:09]} a4 {[%emt 0:00:51]} 37. Nc2 {[%emt 0:00:09]} Bc3 {[%emt 0:00:
00]} 38. Kf1 {[%emt 0:01:20]} Bb2 {[%emt 0:00:17]} 39. Ke2 {[%emt 0:00:12]} a3
{[%emt 0:00:10]} 40. Nb4 {[%emt 0:00:11]} Na4 {[%emt 0:00:12]} 41. Na2 {
[%emt 0:31:06]} d4 {[%emt 0:30:17]} 42. exd4 {[%emt 0:06:08]} Bxd4 {[%emt 0:00:
00]} 43. Bd5 {[%emt 0:00:25]} f5 {[%emt 0:00:51]} 44. f4 {[%emt 0:06:13]} Kf8 {
[%emt 0:00:11]} 45. Bb3 {[%emt 0:00:09]} Nc5 {[%emt 0:00:24]} 46. Bc4 {[%emt 0:
00:00]} Ke7 {[%emt 0:00:10]} 47. Nb4 {[%emt 0:00:06]} Bb2 {[%emt 0:02:10]} 48.
Nd5+ {[%emt 0:00:00]} Kd6 {[%emt 0:00:00]} 49. Ne3 {[%emt 0:00:00]} Ne6 {
[%emt 0:00:00]} 50. Ba2 {[%emt 0:00:00]} Kc5 {[%emt 0:00:00]} 51. Nc4 {[%emt 0:
00:00]} Nd4+ {[%emt 0:00:00]} 52. Kd1 {[%emt 0:00:00]} Kb4 {[%emt 0:00:00]} 53.
Ne5 {[%emt 0:00:00]} Nb5 {[%emt 0:00:00]} 54. Bxf7 {[%emt 0:00:00]} Bxe5 {
[%emt 0:00:00]} 55. fxe5 {[%emt 0:00:00]} Kc3 {[%emt 0:00:00]} 56. Bc4 {
[%emt 0:00:00]} Nd4 {[%emt 0:00:00]} 57. Kc1 {[%emt 0:00:00]} Nc6 {[%emt 0:00:
00]} 58. e6 {[%emt 0:00:00]} g5 {[%emt 0:00:00]} 59. Kb1 {[%emt 0:00:00]} Ne7 {
[%emt 0:00:00]} 60. Kc1 {[%emt 0:00:43]} h5 {[%emt 0:00:00]} 61. Kd1 {[%emt 0:
00:00]} Kd4 {[%emt 0:00:00]} 62. Ke2 {[%emt 0:00:07]} Nc6 {[%emt 0:00:00]} 63.
Ba2 {[%emt 0:03:36]} Ke5 {[%emt 0:00:00]} 64. Ke3 {[%emt 0:00:06]} f4+ {
[%emt 0:00:00]} 65. gxf4+ {[%emt 0:00:07]} gxf4+ {[%emt 0:00:00]} 66. Kf2 {
[%emt 0:01:10]} Kf5 {[%emt 0:00:00]} 67. d4 {[%emt 0:00:37]} Ne7 {[%emt 0:00:
00]} 68. Kf3 {[%emt 0:02:01]} Nc8 {[%emt 0:00:00]} 69. h4 {[%emt 0:02:00]} Ne7
{[%emt 0:00:00]} 70. d5 {[%emt 0:00:09]} Nc8 {[%emt 0:00:00]} 71. Bb1+ {
[%emt 0:01:49]} Ke5 {[%emt 0:00:10]} 72. Ba2 {[%emt 0:00:04]} Nd6 {[%emt 0:00:
00]} 73. Bb3 {[%emt 0:00:55]} Nf5 {[%emt 0:00:41]} 74. Kf2 {[%emt 0:00:08]} Kd6
{[%emt 0:00:21]} 75. Ba2 {[%emt 0:01:20]} Nxh4 {[%emt 0:00:11]} 76. Bc4 {
[%emt 0:01:01]} Nf5 {[%emt 0:00:21]} 77. Kf3 {[%emt 0:01:00]} Ke5 {[%emt 0:00:
00]} 78. Ba2 {[%emt 0:00:10]} Nd6 {[%emt 0:02:33]} 79. e7 {[%emt 0:01:22]} h4 {
[%emt 0:00:12]} 80. Bb3 {[%emt 0:00:54]} h3 {[%emt 0:00:07]} 81. Ba2 {[%emt 0:
00:00]} h2 {[%emt 0:01:26]} 82. Kg2 {[%emt 0:00:17]} Ke4 {[%emt 0:00:55]} 83.
Kxh2 {[%emt 0:00:18]} Ke3 {[%emt 0:00:32]} 84. Kg1 {[%emt 0:00:14]} f3 {
[%emt 0:00:19]} 85. Kf1 {[%emt 0:00:07]} f2 {[%emt 0:00:12]} 86. Bb3 {[%emt 0:
00:00]} Kf3 {[%emt 0:00:11]} 87. Bd1+ {[%emt 0:00:06]} Kg3 {[%emt 0:00:18]} 88.
Bb3 {[%emt 0:00:06]} Ne8 {[%emt 0:02:49]} 89. Bc4 {[%emt 0:00:33]} Nf6 {
[%emt 0:02:46]} 90. d6 {[%emt 0:01:52]} Ng4 {[%emt 0:00:07]} 91. e8=Q {[%emt 0:
00:00]} Nh2+ {[%emt 0:00:10]} 92. Ke2 {[%emt 0:00:04]} f1=Q+ {[%emt 0:02:46]}
93. Kd2 {[%emt 0:00:02]} Qxc4 {[%emt 0:00:21]} 94. Qe5+ {[%emt 0:01:06]} Kg2 {
[%emt 0:03:55]} 95. Qe2+ {[%emt 0:00:49]} Qxe2+ {[%emt 0:00:08]} 96. Kxe2 {
[%emt 0:00:03]} Nf3 {[%emt 0:00:12]} 97. d7 {[%emt 0:00:44]} a2 {[%emt 0:02:14]
} 98. d8=Q {[%emt 0:00:09]} Ng1+ {[%emt 0:00:44]} 99. Ke3 {[%emt 0:00:08]} a1=Q
{[%emt 0:00:15]} 100. Qg5+ {[%emt 0:00:56]} Kh2 {[%emt 0:01:31]} 101. Qf4+ {
[%emt 0:00:27]} Kh3 {[%emt 0:00:18]} 102. Qh6+ {[%emt 0:00:41]} Kg4 {[%emt 0:
00:00]} 103. Qg6+ {[%emt 0:00:06]} Kh3 {[%emt 0:01:01]} 104. Qh6+ {[%emt 0:00:
00]} Kg2 {[%emt 0:00:32]} 105. Qg5+ {[%emt 0:00:15]} Kh2 {[%emt 0:01:27]} 106.
Qf4+ {[%emt 0:00:20]} 1/2-1/2

[Event "44th Chess Olympiad Open 2022"]
[Site "Chennai"]
[Date "2022.08.02"]
[Round "5.68"]
[White "Nathoo, Loris"]
[Black "Khoa, Goodwill"]
[Result "0-1"]
[WhiteElo "1695"]
[BlackElo "1850"]
[Annotator "NA RC"]
[PlyCount "62"]
[EventDate "2022.??.??"]
[TimeControl "60"]

1. d4 {[%emt 0:00:05]} Nf6 {[%emt 0:00:07]} 2. Bf4 {[%emt 0:00:08]} c5 {
[%emt 0:00:11]} 3. d5 {[%emt 0:00:16]} d6 {[%emt 0:00:41]} 4. Nc3 {[%emt 0:00:
00]} a6 {[%emt 0:01:45]} 5. a4 {[%emt 0:00:12]} g6 {[%emt 0:00:11]} 6. e4 {
[%emt 0:02:05]} Qb6 {[%emt 0:01:23]} 7. Qd2 {[%emt 0:05:13]} Bg7 {[%emt 0:00:
00]} 8. a5 {[%emt 0:01:13]} Qxb2 {[%emt 0:04:59]} 9. Ra2 {[%emt 0:00:11]} Qb4 {
[%emt 0:00:51]} 10. Ra4 {[%emt 0:00:06]} Nxe4 {[%emt 0:00:35]} 11. Rxb4 {
[%emt 0:10:15]} Nxd2 {[%emt 0:00:21]} 12. Rb6 {[%emt 0:03:11]} Nxf1 {[%emt 0:
00:00]} 13. Ne4 {[%emt 0:04:23]} f5 {[%emt 0:03:57]} 14. Ng5 {[%emt 0:09:12]}
Bc3+ {[%emt 0:04:23]} 15. Kxf1 {[%emt 0:00:05]} Bxa5 {[%emt 0:00:11]} 16. Rb1 {
[%emt 0:00:53]} b5 {[%emt 0:00:21]} 17. h4 {[%emt 0:02:53]} Nd7 {[%emt 0:03:21]
} 18. h5 {[%emt 0:00:43]} Nf8 {[%emt 0:03:19]} 19. Ne2 {[%emt 0:09:01]} h6 {
[%emt 0:01:56]} 20. hxg6 {[%emt 0:03:51]} Nxg6 {[%emt 0:00:18]} 21. Nf3 {
[%emt 0:00:08]} Bb7 {[%emt 0:06:50]} 22. c4 {[%emt 0:00:15]} Nxf4 {[%emt 0:00:
00]} 23. Nxf4 {[%emt 0:00:10]} O-O-O {[%emt 0:00:09]} 24. Rh5 {[%emt 0:06:08]}
Bc3 {[%emt 0:02:48]} 25. Ng6 {[%emt 0:06:51]} Rh7 {[%emt 0:02:53]} 26. Rxf5 {
[%emt 0:01:39]} Rg7 {[%emt 0:04:54]} 27. Nf8 {[%emt 0:03:03]} Rg4 {[%emt 0:00:
00]} 28. Ne6 {[%emt 0:08:47]} Rdg8 {[%emt 0:01:05]} 29. Nf4 {[%emt 0:02:09]} b4
{[%emt 0:07:00]} 30. Rf7 {[%emt 0:09:15]} Kd8 {[%emt 0:02:10]} 31. Rh7 {
[%emt 0:00:00]} Rxf4 {[%emt 0:00:31]} 0-1

[Event "44th Chess Olympiad Open 2022"]
[Site "Chennai"]
[Date "2022.08.02"]
[Round "5.69"]
[White "Attalib, Osama A."]
[Black "Muhammed, Shuaau"]
[Result "1-0"]
[WhiteElo "2033"]
[BlackElo "1987"]
[Annotator "NA RC"]
[PlyCount "57"]
[EventDate "2022.??.??"]
[TimeControl "60"]

1. d4 {[%emt 0:00:10]} d5 {[%emt 0:00:08]} 2. Bf4 {[%emt 0:00:15]} e6 {[%emt 0:
00:00]} 3. e3 {[%emt 0:00:06]} Nf6 {[%emt 0:00:11]} 4. Nd2 {[%emt 0:00:20]} Bd6
{[%emt 0:00:08]} 5. Bg3 {[%emt 0:00:13]} O-O {[%emt 0:00:47]} 6. Bd3 {[%emt 0:
00:00]} c5 {[%emt 0:00:13]} 7. c3 {[%emt 0:00:06]} Nc6 {[%emt 0:01:48]} 8. Ngf3
{[%emt 0:00:14]} b6 {[%emt 0:00:45]} 9. Qe2 {[%emt 0:00:11]} Bb7 {[%emt 0:00:
00]} 10. Rd1 {[%emt 0:00:13]} c4 {[%emt 0:19:05]} 11. Bc2 {[%emt 0:00:17]} b5 {
[%emt 0:01:13]} 12. e4 {[%emt 0:01:55]} dxe4 {[%emt 0:06:45]} 13. Nxe4 {
[%emt 0:00:10]} Nxe4 {[%emt 0:03:25]} 14. Qxe4 {[%emt 0:00:17]} g6 {[%emt 0:00:
00]} 15. O-O {[%emt 0:02:19]} Bxg3 {[%emt 0:02:15]} 16. hxg3 {[%emt 0:00:17]}
Rb8 {[%emt 0:03:59]} 17. Qf4 {[%emt 0:00:45]} Kg7 {[%emt 0:01:22]} 18. Ng5 {
[%emt 0:04:00]} Ne7 {[%emt 0:04:50]} 19. Qe5+ {[%emt 0:22:07]} Kg8 {[%emt 0:00:
00]} 20. d5 {[%emt 0:02:26]} Nxd5 {[%emt 0:04:19]} 21. Ne4 {[%emt 0:11:44]} Re8
{[%emt 0:20:24]} 22. Rxd5 {[%emt 0:00:00]} Bxd5 {[%emt 0:00:53]} 23. Nf6+ {
[%emt 0:00:20]} Kf8 {[%emt 0:00:02]} 24. Nxh7+ {[%emt 0:18:59]} Kg8 {[%emt 0:
00:00]} 25. Nf6+ {[%emt 0:00:00]} Kf8 {[%emt 0:00:01]} 26. Rd1 {[%emt 0:05:08]}
Rb6 {[%emt 0:03:04]} 27. Rd4 {[%emt 0:04:54]} Qd6 {[%emt 0:06:09]} 28. Qg5 {
[%emt 0:05:13]} e5 {[%emt 0:12:07]} 29. Qh6+ {[%emt 0:00:26]} 1-0

[Event "44th Chess Olympiad Open 2022"]
[Site "Chennai"]
[Date "2022.08.02"]
[Round "5.69"]
[White "Abugenda, Nagi"]
[Black "Fuad, Ahmed Mufleh"]
[Result "1/2-1/2"]
[WhiteElo "1991"]
[BlackElo "2086"]
[Annotator "NA RC"]
[PlyCount "99"]
[EventDate "2022.??.??"]
[TimeControl "60"]

1. e4 {[%emt 0:00:08]} e6 {[%emt 0:00:15]} 2. c4 {[%emt 0:00:03]} d5 {[%emt 0:
00:00]} 3. exd5 {[%emt 0:00:11]} exd5 {[%emt 0:00:10]} 4. cxd5 {[%emt 0:00:09]}
Qxd5 {[%emt 0:01:28]} 5. Nc3 {[%emt 0:00:17]} Qd8 {[%emt 0:01:22]} 6. Nf3 {
[%emt 0:00:22]} Be7 {[%emt 0:01:39]} 7. Bc4 {[%emt 0:02:01]} Nf6 {[%emt 0:00:
00]} 8. h3 {[%emt 0:01:22]} O-O {[%emt 0:00:59]} 9. O-O {[%emt 0:00:10]} c6 {
[%emt 0:01:30]} 10. d4 {[%emt 0:00:29]} b5 {[%emt 0:00:10]} 11. Bd3 {[%emt 0:
00:00]} Nd5 {[%emt 0:01:48]} 12. Re1 {[%emt 0:03:25]} Bf6 {[%emt 0:00:32]} 13.
Qe2 {[%emt 0:02:38]} Nb4 {[%emt 0:03:23]} 14. Bb1 {[%emt 0:02:20]} Be6 {
[%emt 0:15:22]} 15. Bf4 {[%emt 0:06:12]} Nd5 {[%emt 0:01:50]} 16. Be5 {[%emt 0:
00:00]} Nd7 {[%emt 0:02:02]} 17. Ne4 {[%emt 0:02:00]} Nxe5 {[%emt 0:01:04]} 18.
dxe5 {[%emt 0:02:48]} Be7 {[%emt 0:00:47]} 19. Qc2 {[%emt 0:01:25]} g6 {
[%emt 0:01:56]} 20. Qxc6 {[%emt 0:03:08]} Qa5 {[%emt 0:03:25]} 21. Qc1 {
[%emt 0:04:23]} Kg7 {[%emt 0:00:41]} 22. Neg5 {[%emt 0:08:36]} Rac8 {[%emt 0:
00:00]} 23. Qd1 {[%emt 0:04:37]} Qb4 {[%emt 0:04:47]} 24. Qb3 {[%emt 0:14:23]}
Bxg5 {[%emt 0:07:56]} 25. Qxb4 {[%emt 0:01:12]} Nxb4 {[%emt 0:00:13]} 26. Nxg5
{[%emt 0:00:12]} Nc2 {[%emt 0:00:07]} 27. Bxc2 {[%emt 0:00:29]} Rxc2 {[%emt 0:
00:00]} 28. b3 {[%emt 0:03:10]} Rfc8 {[%emt 0:03:25]} 29. Nf3 {[%emt 0:06:17]}
Rd8 {[%emt 0:03:09]} 30. Rec1 {[%emt 0:01:56]} Rdc8 {[%emt 0:01:34]} 31. Rxc2 {
[%emt 0:01:19]} Rxc2 {[%emt 0:00:11]} 32. Nd4 {[%emt 0:00:00]} Rc5 {[%emt 0:00:
00]} 33. Re1 {[%emt 0:02:46]} Rd5 {[%emt 0:01:07]} 34. Nf3 {[%emt 0:00:25]} Rc5
{[%emt 0:00:39]} 35. Re2 {[%emt 0:00:26]} a5 {[%emt 0:01:34]} 36. Nd4 {[%emt 0:
00:00]} Kf8 {[%emt 0:08:07]} 37. f4 {[%emt 0:00:52]} Ke7 {[%emt 0:00:42]} 38.
Kf2 {[%emt 0:01:41]} a4 {[%emt 0:04:16]} 39. g4 {[%emt 0:04:37]} axb3 {[%emt 0:
00:00]} 40. axb3 {[%emt 0:00:16]} b4 {[%emt 0:03:51]} 41. Re3 {[%emt 0:31:40]}
h5 {[%emt 0:32:32]} 42. f5 {[%emt 0:02:10]} Bd5 {[%emt 0:01:38]} 43. Kg3 {
[%emt 0:06:13]} hxg4 {[%emt 0:00:41]} 44. hxg4 {[%emt 0:00:10]} gxf5 {[%emt 0:
00:00]} 45. gxf5 {[%emt 0:00:22]} Rc1 {[%emt 0:03:39]} 46. e6 {[%emt 0:02:50]}
fxe6 {[%emt 0:01:26]} 47. fxe6 {[%emt 0:00:26]} Rc3 {[%emt 0:00:45]} 48. Kf4 {
[%emt 0:02:23]} Rxe3 {[%emt 0:00:31]} 49. Kxe3 {[%emt 0:00:04]} Bxb3 {[%emt 0:
00:00]} 50. Ke4 {[%emt 0:04:55]} 1/2-1/2

[Event "44th Chess Olympiad Open 2022"]
[Site "Chennai"]
[Date "2022.08.02"]
[Round "5.69"]
[White "Ashraf, Ahmed Ramadan"]
[Black "Fates, Omer Salah"]
[Result "1-0"]
[WhiteElo "1916"]
[BlackElo "1940"]
[Annotator "NA RC"]
[PlyCount "121"]
[EventDate "2022.??.??"]
[TimeControl "60"]

1. e4 {[%emt 0:00:04]} e6 {[%emt 0:00:14]} 2. d4 {[%emt 0:00:03]} d5 {[%emt 0:
00:00]} 3. e5 {[%emt 0:00:06]} c5 {[%emt 0:00:27]} 4. c3 {[%emt 0:00:02]} Nc6 {
[%emt 0:00:07]} 5. Nf3 {[%emt 0:00:05]} Bd7 {[%emt 0:00:12]} 6. a3 {[%emt 0:00:
00]} f6 {[%emt 0:05:43]} 7. Be2 {[%emt 0:02:00]} fxe5 {[%emt 0:04:38]} 8. Nxe5
{[%emt 0:00:12]} Nxe5 {[%emt 0:01:01]} 9. dxe5 {[%emt 0:00:04]} Qc7 {[%emt 0:
00:00]} 10. f4 {[%emt 0:03:30]} O-O-O {[%emt 0:01:13]} 11. O-O {[%emt 0:01:00]}
Nh6 {[%emt 0:01:34]} 12. b4 {[%emt 0:01:07]} c4 {[%emt 0:01:16]} 13. Be3 {
[%emt 0:01:02]} Nf5 {[%emt 0:05:09]} 14. Bf2 {[%emt 0:07:09]} Rg8 {[%emt 0:00:
00]} 15. g4 {[%emt 0:09:41]} Ne7 {[%emt 0:01:14]} 16. Bh4 {[%emt 0:05:39]} g6 {
[%emt 0:14:53]} 17. a4 {[%emt 0:04:08]} Re8 {[%emt 0:02:56]} 18. Bxe7 {[%emt 0:
00:00]} Bxe7 {[%emt 0:00:28]} 19. Na3 {[%emt 0:04:06]} Qb6+ {[%emt 0:02:38]}
20. Kg2 {[%emt 0:01:40]} Ref8 {[%emt 0:03:06]} 21. Nc2 {[%emt 0:00:57]} Rf7 {
[%emt 0:01:08]} 22. a5 {[%emt 0:02:36]} Qc7 {[%emt 0:02:04]} 23. Qd4 {[%emt 0:
00:00]} Kb8 {[%emt 0:01:25]} 24. Ne3 {[%emt 0:01:43]} Rgf8 {[%emt 0:02:02]} 25.
Rad1 {[%emt 0:06:49]} Bc6 {[%emt 0:02:28]} 26. g5 {[%emt 0:01:06]} Ka8 {
[%emt 0:13:17]} 27. Bg4 {[%emt 0:00:43]} Qd7 {[%emt 0:00:56]} 28. Kg3 {[%emt 0:
00:00]} Bd8 {[%emt 0:00:25]} 29. h4 {[%emt 0:00:36]} Bc7 {[%emt 0:01:22]} 30.
Bh3 {[%emt 0:02:01]} a6 {[%emt 0:01:25]} 31. Ng4 {[%emt 0:00:54]} Bb8 {[%emt 0:
00:00]} 32. Nf6 {[%emt 0:00:39]} Qe7 {[%emt 0:00:39]} 33. Qd2 {[%emt 0:02:48]}
Rd8 {[%emt 0:01:44]} 34. Qe2 {[%emt 0:00:34]} Bd7 {[%emt 0:02:00]} 35. Qg4 {
[%emt 0:02:39]} Bc8 {[%emt 0:00:34]} 36. Qe2 {[%emt 0:01:21]} Qc7 {[%emt 0:00:
00]} 37. Rd2 {[%emt 0:00:27]} Ba7 {[%emt 0:01:36]} 38. Rfd1 {[%emt 0:00:02]}
Qc6 {[%emt 0:00:59]} 39. Qf3 {[%emt 0:00:45]} Qb5 {[%emt 0:01:26]} 40. h5 {
[%emt 0:05:15]} Rc7 {[%emt 0:07:19]} 41. hxg6 {[%emt 0:33:08]} hxg6 {[%emt 0:
00:00]} 42. Qe2 {[%emt 0:06:57]} Qa4 {[%emt 0:02:12]} 43. Ne4 {[%emt 0:01:41]}
Rh8 {[%emt 0:02:48]} 44. Nf6 {[%emt 0:00:42]} Qb3 {[%emt 0:00:47]} 45. Qf3 {
[%emt 0:03:16]} d4 {[%emt 0:02:58]} 46. Rxd4 {[%emt 0:00:23]} Bxd4 {[%emt 0:00:
00]} 47. Rxd4 {[%emt 0:00:03]} Kb8 {[%emt 0:02:11]} 48. Bg2 {[%emt 0:01:28]}
Qb1 {[%emt 0:00:00]} 49. Rd1 {[%emt 0:00:00]} Qb2 {[%emt 0:00:00]} 50. Rd6 {
[%emt 0:00:00]} Re7 {[%emt 0:00:00]} 51. Qe3 {[%emt 0:00:00]} Qb1 {[%emt 0:00:
00]} 52. Be4 {[%emt 0:00:00]} Qa2 {[%emt 0:00:00]} 53. Rd2 {[%emt 0:00:00]} Qa4
{[%emt 0:00:00]} 54. Bxg6 {[%emt 0:00:00]} Rh1 {[%emt 0:00:00]} 55. Be4 {
[%emt 0:00:00]} Rc1 {[%emt 0:00:00]} 56. Rd4 {[%emt 0:00:00]} Qa1 {[%emt 0:00:
00]} 57. Rxc4 {[%emt 0:00:00]} Rc7 {[%emt 0:03:49]} 58. Rxc7 {[%emt 0:00:00]}
Kxc7 {[%emt 0:00:10]} 59. Qb6+ {[%emt 0:00:00]} Kb8 {[%emt 0:00:05]} 60. Nd7+ {
[%emt 0:00:00]} Ka8 {[%emt 0:00:03]} 61. Bxb7+ {[%emt 0:00:00]} 1-0

[Event "44th Chess Olympiad Open 2022"]
[Site "Chennai"]
[Date "2022.08.02"]
[Round "5.69"]
[White "Mujahid Bin Yazeed"]
[Black "Naser Eldean, Ahmed"]
[Result "0-1"]
[WhiteElo "1418"]
[BlackElo "1941"]
[Annotator "RC"]
[PlyCount "104"]
[EventDate "2022.??.??"]
[TimeControl "60"]

1. e4 {[%emt 0:00:04]} e6 {[%emt 0:00:08]} 2. d4 {[%emt 0:00:06]} d5 {[%emt 0:
00:00]} 3. Nd2 {[%emt 0:00:07]} Nc6 {[%emt 0:00:08]} 4. Ngf3 {[%emt 0:01:07]}
Nf6 {[%emt 0:00:07]} 5. e5 {[%emt 0:00:20]} Nd7 {[%emt 0:00:07]} 6. Bd3 {
[%emt 0:00:19]} f6 {[%emt 0:01:55]} 7. Ng5 {[%emt 0:14:09]} Ndxe5 {[%emt 0:00:
00]} 8. dxe5 {[%emt 0:02:46]} fxg5 {[%emt 0:00:07]} 9. Qh5+ {[%emt 0:00:08]} g6
{[%emt 0:00:08]} 10. Bxg6+ {[%emt 0:01:10]} Kd7 {[%emt 0:00:09]} 11. Bd3 {
[%emt 0:03:54]} Nxe5 {[%emt 0:00:15]} 12. Be2 {[%emt 0:01:11]} Qf6 {[%emt 0:00:
00]} 13. Nb3 {[%emt 0:05:45]} h6 {[%emt 0:05:11]} 14. Be3 {[%emt 0:04:34]} Qg6
{[%emt 0:10:39]} 15. O-O-O {[%emt 0:04:07]} Qxh5 {[%emt 0:07:00]} 16. Bxh5 {
[%emt 0:00:08]} b6 {[%emt 0:07:22]} 17. Bd4 {[%emt 0:05:02]} Bg7 {[%emt 0:00:
00]} 18. Rhe1 {[%emt 0:00:26]} Kd6 {[%emt 0:00:00]} 19. c4 {[%emt 0:02:50]} c5
{[%emt 0:00:00]} 20. Bxe5+ {[%emt 0:01:49]} Bxe5 {[%emt 0:00:00]} 21. cxd5 {
[%emt 0:00:22]} exd5 {[%emt 0:00:00]} 22. Rxd5+ {[%emt 0:00:28]} Kxd5 {[%emt 0:
00:00]} 23. Bf3+ {[%emt 0:00:56]} Kc4 {[%emt 0:05:12]} 24. Rxe5 {[%emt 0:16:52]
} Bg4 {[%emt 0:04:54]} 25. Bxa8 {[%emt 0:00:53]} Rxa8 {[%emt 0:03:32]} 26. Re4+
{[%emt 0:00:07]} Kd3 {[%emt 0:00:03]} 27. Rxg4 {[%emt 0:00:18]} Re8 {[%emt 0:
00:00]} 28. Rg3+ {[%emt 0:00:12]} Ke2 {[%emt 0:00:40]} 29. Rf3 {[%emt 0:01:55]}
Rd8 {[%emt 0:00:15]} 30. Kc2 {[%emt 0:00:50]} c4 {[%emt 0:01:50]} 31. Nc1+ {
[%emt 0:02:35]} Ke1 {[%emt 0:00:37]} 32. a4 {[%emt 0:05:36]} Rd2+ {[%emt 0:00:
00]} 33. Kc3 {[%emt 0:00:15]} Rxf2 {[%emt 0:00:04]} 34. Rxf2 {[%emt 0:00:15]}
Kxf2 {[%emt 0:00:05]} 35. Kxc4 {[%emt 0:09:15]} Kxg2 {[%emt 0:00:07]} 36. Kb5 {
[%emt 0:00:07]} g4 {[%emt 0:00:11]} 37. Ka6 {[%emt 0:01:14]} h5 {[%emt 0:00:19]
} 38. Kxa7 {[%emt 0:02:33]} h4 {[%emt 0:00:07]} 39. Kxb6 {[%emt 0:00:58]} g3 {
[%emt 0:00:15]} 40. h3 {[%emt 0:04:05]} Kf1 {[%emt 0:00:30]} 41. b4 {[%emt 0:
00:00]} g2 {[%emt 0:30:06]} 42. Nd3 {[%emt 0:00:09]} g1=Q+ {[%emt 0:00:15]} 43.
Nc5 {[%emt 0:00:11]} Qd4 {[%emt 0:00:43]} 44. Kb5 {[%emt 0:00:23]} Qe3 {
[%emt 0:05:48]} 45. a5 {[%emt 0:00:41]} Qxh3 {[%emt 0:00:06]} 46. Kb6 {[%emt 0:
00:00]} Qc8 {[%emt 0:00:21]} 47. b5 {[%emt 0:00:18]} h3 {[%emt 0:00:08]} 48.
Nb7 {[%emt 0:00:40]} h2 {[%emt 0:00:16]} 49. a6 {[%emt 0:00:06]} h1=Q {[%emt 0:
00:00]} 50. Ka7 {[%emt 0:00:27]} Qg1+ {[%emt 0:00:31]} 51. b6 {[%emt 0:00:11]}
Qc7 {[%emt 0:00:13]} 52. Ka8 {[%emt 0:00:05]} Qg8+ {[%emt 0:00:18]} 0-1

[Event "44th Chess Olympiad Open 2022"]
[Site "Chennai"]
[Date "2022.08.02"]
[Round "5.70"]
[White "Blackman, Justin"]
[Black "Faulks, Nick"]
[Result "1-0"]
[WhiteElo "2195"]
[BlackElo "1820"]
[Annotator "NA RC"]
[PlyCount "61"]
[EventDate "2022.??.??"]
[TimeControl "60"]

1. d4 {[%emt 0:00:03]} Nf6 {[%emt 0:00:07]} 2. c4 {[%emt 0:00:06]} c5 {[%emt 0:
00:00]} 3. d5 {[%emt 0:00:06]} b5 {[%emt 0:00:04]} 4. Nd2 {[%emt 0:00:17]} bxc4
{[%emt 0:03:43]} 5. e4 {[%emt 0:00:08]} d6 {[%emt 0:00:11]} 6. Bxc4 {[%emt 0:
00:00]} g6 {[%emt 0:02:08]} 7. b3 {[%emt 0:00:05]} Bg7 {[%emt 0:00:20]} 8. Bb2
{[%emt 0:00:06]} O-O {[%emt 0:01:02]} 9. Ne2 {[%emt 0:00:19]} Nbd7 {[%emt 0:00:
00]} 10. O-O {[%emt 0:00:13]} Nb6 {[%emt 0:04:54]} 11. Qc2 {[%emt 0:08:37]} a5
{[%emt 0:02:06]} 12. Nc3 {[%emt 0:02:13]} a4 {[%emt 0:03:07]} 13. bxa4 {
[%emt 0:04:49]} Nxc4 {[%emt 0:03:56]} 14. Nxc4 {[%emt 0:00:05]} Ba6 {[%emt 0:
00:00]} 15. Nb5 {[%emt 0:02:20]} Rb8 {[%emt 0:08:16]} 16. Nca3 {[%emt 0:02:14]}
Qd7 {[%emt 0:04:25]} 17. Rfe1 {[%emt 0:04:10]} h5 {[%emt 0:07:21]} 18. Rad1 {
[%emt 0:01:34]} Rfc8 {[%emt 0:08:19]} 19. h3 {[%emt 0:14:06]} Qb7 {[%emt 0:00:
00]} 20. f4 {[%emt 0:07:34]} c4 {[%emt 0:06:49]} 21. Bc3 {[%emt 0:04:19]} Qb6+
{[%emt 0:01:45]} 22. Kh1 {[%emt 0:00:20]} Qb7 {[%emt 0:02:46]} 23. Bxf6 {
[%emt 0:04:29]} Bxf6 {[%emt 0:01:02]} 24. e5 {[%emt 0:00:05]} Bh4 {[%emt 0:00:
00]} 25. Re4 {[%emt 0:00:11]} f5 {[%emt 0:01:49]} 26. Rxc4 {[%emt 0:01:29]} Qb6
{[%emt 0:03:55]} 27. Rc6 {[%emt 0:08:01]} Rxc6 {[%emt 0:02:33]} 28. dxc6 {
[%emt 0:00:11]} Rc8 {[%emt 0:00:46]} 29. exd6 {[%emt 0:03:51]} Rxc6 {[%emt 0:
00:00]} 30. d7 {[%emt 0:01:56]} e6 {[%emt 0:00:22]} 31. d8=Q+ {[%emt 0:01:39]}
1-0